[Event "*** Titled Tuesday Blitz"]
[Site "Chess.com"]
[Date "2018.12.04"]
[Round "2"]
[White "Haykos"]
[Black "leclash"]
[Result "0-1"]
[WhiteElo "2512"]
[BlackElo "2370"]
[TimeControl "180+2"]
[EndTime "13:22:16 PST"]
[Termination "leclash won by resignation"]

1. e4 {[%clk 0:03:01.9]} 1... e5 {[%clk 0:02:55.7]} 2. Nf3 {[%clk 0:02:55.5]}
2... Nc6 {[%clk 0:02:56.9]} 3. Bc4 {[%clk 0:02:56.2]} 3... Bc5 {[%clk
0:02:57.8]} 4. d3 {[%clk 0:02:56.9]} 4... Nf6 {[%clk 0:02:58.9]} 5. O-O {[%clk
0:02:57]} 5... d6 {[%clk 0:02:58.5]} 6. c3 {[%clk 0:02:56.2]} 6... a6 {[%clk
0:02:59]} 7. a4 {[%clk 0:02:56.6]} 7... Ba7 {[%clk 0:02:53.8]} 8. Re1 {[%clk
0:02:56.7]} 8... Ne7 {[%clk 0:02:44]} 9. h3 {[%clk 0:02:57]} 9... Ng6 {[%clk
0:02:43.2]} 10. d4 {[%clk 0:02:58]} 10... O-O {[%clk 0:02:35.7]} 11. Nbd2 {[%clk
0:02:27.3]} 11... Nh5 {[%clk 0:02:08.7]} 12. Nxe5 {[%clk 0:01:57.3]} 12... dxe5
{[%clk 0:02:03.3]} 13. Qxh5 {[%clk 0:01:58.2]} 13... exd4 {[%clk 0:01:58.6]} 14.
Nf3 {[%clk 0:01:59.3]} 14... Qf6 {[%clk 0:00:41.3]} 15. Bg5 {[%clk 0:01:02.2]}
15... Qc6 {[%clk 0:00:31.4]} 16. Bd5 {[%clk 0:01:00.1]} 16... Qb6 {[%clk
0:00:32.6]} 17. cxd4 {[%clk 0:00:59.9]} 17... Qxb2 {[%clk 0:00:30.7]} 18. Bc1
{[%clk 0:00:33.7]} 18... Qb6 {[%clk 0:00:27.9]} 19. Ba3 {[%clk 0:00:28.6]} 19...
Nf4 {[%clk 0:00:22.3]} 20. Qg4 {[%clk 0:00:17.6]} 20... Bxg4 {[%clk 0:00:22.3]}
21. hxg4 {[%clk 0:00:14.5]} 21... Nxd5 {[%clk 0:00:23.2]} 22. exd5 {[%clk
0:00:15]} 22... Rfe8 {[%clk 0:00:23.9]} 23. Ne5 {[%clk 0:00:16.1]} 23... f6
{[%clk 0:00:23.3]} 24. Bc5 {[%clk 0:00:16.9]} 24... Qb2 {[%clk 0:00:20.3]} 25.
Nd3 {[%clk 0:00:15.9]} 25... Rxe1+ {[%clk 0:00:18.7]} 26. Rxe1 {[%clk
0:00:17.8]} 26... Qd2 {[%clk 0:00:19.9]} 27. Bxa7 {[%clk 0:00:17.2]} 27... Rxa7
{[%clk 0:00:18.5]} 28. Re3 {[%clk 0:00:18.5]} 28... b5 {[%clk 0:00:17.8]} 29. g5
{[%clk 0:00:17.8]} 29... bxa4 {[%clk 0:00:18.1]} 30. Nc5 {[%clk 0:00:16.6]}
30... Qxe3 {[%clk 0:00:15.4]} 31. fxe3 {[%clk 0:00:17.6]} 31... a3 {[%clk
0:00:17.1]} 32. Nb3 {[%clk 0:00:17.5]} 32... a2 {[%clk 0:00:18.3]} 33. Kf2
{[%clk 0:00:18.7]} 33... Rb7 {[%clk 0:00:19.6]} 34. Na1 {[%clk 0:00:20]} 34...
Rb1 {[%clk 0:00:20.7]} 0-1

[Event "*** Titled Tuesday Blitz"]
[Site "Chess.com"]
[Date "2018.12.04"]
[Round "2"]
[White "Vadim_Biliy"]
[Black "Jadeit90"]
[Result "1/2-1/2"]
[WhiteElo "2158"]
[BlackElo "2257"]
[TimeControl "180+2"]
[EndTime "13:22:17 PST"]
[Termination "Game drawn by repetition"]

1. d4 {[%clk 0:03:01.9]} 1... g6 {[%clk 0:03:00.8]} 2. Nf3 {[%clk 0:03:00.5]}
2... Bg7 {[%clk 0:03:02.1]} 3. e3 {[%clk 0:03:01.7]} 3... c5 {[%clk 0:03:01.2]}
4. Be2 {[%clk 0:03:03.1]} 4... cxd4 {[%clk 0:02:57.3]} 5. exd4 {[%clk
0:03:03.3]} 5... d6 {[%clk 0:02:58.7]} 6. O-O {[%clk 0:03:03.9]} 6... Nf6 {[%clk
0:02:59.9]} 7. c4 {[%clk 0:03:01.8]} 7... O-O {[%clk 0:03:00.8]} 8. d5 {[%clk
0:03:02.6]} 8... e5 {[%clk 0:03:00.9]} 9. dxe6 {[%clk 0:02:58.7]} 9... Bxe6
{[%clk 0:03:01.6]} 10. Nc3 {[%clk 0:02:58.4]} 10... Nc6 {[%clk 0:03:01.9]} 11.
Bg5 {[%clk 0:02:53.5]} 11... h6 {[%clk 0:03:02.3]} 12. Bf4 {[%clk 0:02:52.2]}
12... d5 {[%clk 0:03:02.9]} 13. cxd5 {[%clk 0:02:48.1]} 13... Nxd5 {[%clk
0:03:04.1]} 14. Nxd5 {[%clk 0:02:48.4]} 14... Bxd5 {[%clk 0:03:05.5]} 15. Qd2
{[%clk 0:02:38.3]} 15... g5 {[%clk 0:03:04.1]} 16. Be3 {[%clk 0:02:33.7]} 16...
Be6 {[%clk 0:02:59.8]} 17. Rad1 {[%clk 0:02:29.2]} 17... Qf6 {[%clk 0:02:59.1]}
18. b3 {[%clk 0:02:27.3]} 18... Rfd8 {[%clk 0:02:59.1]} 19. Qc1 {[%clk
0:02:09.9]} 19... Nb4 {[%clk 0:02:56]} 20. Rd2 {[%clk 0:02:02.9]} 20... Rac8
{[%clk 0:02:54.5]} 21. Rxd8+ {[%clk 0:02:01.1]} 21... Rxd8 {[%clk 0:02:54.7]}
22. Qa3 {[%clk 0:01:56.7]} 22... Nc6 {[%clk 0:02:52.9]} 23. Qc5 {[%clk
0:01:52.2]} 23... Bf8 {[%clk 0:02:52.9]} 24. Qb5 {[%clk 0:01:47.6]} 24... Qe7
{[%clk 0:02:51.3]} 25. h3 {[%clk 0:01:46.1]} 25... Qb4 {[%clk 0:02:48.8]} 26.
Qxb4 {[%clk 0:01:43.4]} 26... Nxb4 {[%clk 0:02:49.3]} 27. Nd4 {[%clk 0:01:35.3]}
27... Bd5 {[%clk 0:02:41.1]} 28. a3 {[%clk 0:01:30.5]} 28... Nc6 {[%clk
0:02:41.3]} 29. Nxc6 {[%clk 0:01:28.2]} 29... Bxc6 {[%clk 0:02:42.5]} 30. b4
{[%clk 0:01:28.7]} 30... a6 {[%clk 0:02:40]} 31. Rc1 {[%clk 0:01:28.2]} 31...
Bg7 {[%clk 0:02:38.6]} 32. Bxa6 {[%clk 0:01:28.5]} 32... Bb2 {[%clk 0:02:38.4]}
33. Rc2 {[%clk 0:01:28.8]} 33... Bxa3 {[%clk 0:02:39.6]} 34. b5 {[%clk
0:01:19.9]} 34... Bd5 {[%clk 0:02:31.8]} 35. Bb6 {[%clk 0:01:13]} 35... Rd7
{[%clk 0:02:28.6]} 36. Rc8+ {[%clk 0:01:11.3]} 36... Kh7 {[%clk 0:02:26.9]} 37.
Bc7 {[%clk 0:01:02.4]} 37... bxa6 {[%clk 0:02:25.8]} 38. bxa6 {[%clk 0:01:02.3]}
38... Bd6 {[%clk 0:02:23.9]} 39. Bxd6 {[%clk 0:00:59.8]} 39... Rxd6 {[%clk
0:02:24.9]} 40. a7 {[%clk 0:01:01]} 40... Ra6 {[%clk 0:02:25.6]} 41. Rc7 {[%clk
0:01:02.2]} 41... Kg6 {[%clk 0:02:25.6]} 42. f3 {[%clk 0:01:03.2]} 42... f5
{[%clk 0:02:18.7]} 43. Rd7 {[%clk 0:01:03.4]} 43... Ba8 {[%clk 0:01:54]} 44. Kf2
{[%clk 0:01:02.8]} 44... f4 {[%clk 0:01:54.2]} 45. Ke2 {[%clk 0:01:02.8]} 45...
h5 {[%clk 0:01:54.1]} 46. Kd3 {[%clk 0:01:03]} 46... g4 {[%clk 0:01:55]} 47.
hxg4 {[%clk 0:01:01.9]} 47... hxg4 {[%clk 0:01:56.2]} 48. fxg4 {[%clk
0:01:02.6]} 48... Bxg2 {[%clk 0:01:57.2]} 49. Kd4 {[%clk 0:01:01]} 49... f3
{[%clk 0:01:58.1]} 50. Ke3 {[%clk 0:01:02]} 50... Kg5 {[%clk 0:01:45.2]} 51.
Rg7+ {[%clk 0:00:59.4]} 51... Kh4 {[%clk 0:01:46.2]} 52. g5 {[%clk 0:00:59.1]}
52... Kg3 {[%clk 0:01:46.1]} 53. Rf7 {[%clk 0:00:57.1]} 53... Ra3+ {[%clk
0:01:45.9]} 54. Kd4 {[%clk 0:00:56.2]} 54... f2 {[%clk 0:01:38.6]} 55. g6 {[%clk
0:00:56.7]} 55... Ra4+ {[%clk 0:01:21.5]} 56. Ke3 {[%clk 0:00:56]} 56... Ra3+
{[%clk 0:01:21.9]} 57. Kd4 {[%clk 0:00:56.1]} 57... Ra4+ {[%clk 0:01:23.1]} 58.
Ke3 {[%clk 0:00:57.1]} 58... Ra3+ {[%clk 0:01:20.1]} 59. Kd4 {[%clk 0:00:58]}
59... Ra4+ {[%clk 0:01:21.2]} 60. Ke3 {[%clk 0:00:59.1]} 1/2-1/2

[Event "*** Titled Tuesday Blitz"]
[Site "Chess.com"]
[Date "2018.12.04"]
[Round "2"]
[White "PchelkinVK"]
[Black "Marcus_Harvey"]
[Result "1-0"]
[WhiteElo "2573"]
[BlackElo "2680"]
[TimeControl "180+2"]
[EndTime "13:22:19 PST"]
[Termination "PchelkinVK won by resignation"]

1. d4 {[%clk 0:03:01.9]} 1... Nf6 {[%clk 0:02:59.7]} 2. Nc3 {[%clk 0:03:02.9]}
2... e6 {[%clk 0:03:01]} 3. e4 {[%clk 0:03:03.5]} 3... d5 {[%clk 0:03:02.2]} 4.
e5 {[%clk 0:03:04.9]} 4... Nfd7 {[%clk 0:03:03.3]} 5. Nf3 {[%clk 0:03:06.3]}
5... c5 {[%clk 0:03:04.9]} 6. dxc5 {[%clk 0:03:08.2]} 6... a6 {[%clk 0:03:05.4]}
7. b4 {[%clk 0:03:07.7]} 7... Nc6 {[%clk 0:03:06.5]} 8. a3 {[%clk 0:03:04.9]}
8... Ndxe5 {[%clk 0:03:07.6]} 9. Nxe5 {[%clk 0:03:06.4]} 9... Nxe5 {[%clk
0:03:09.2]} 10. Bb2 {[%clk 0:02:55.1]} 10... Qg5 {[%clk 0:02:47.7]} 11. h4
{[%clk 0:02:33.8]} 11... Qf5 {[%clk 0:02:46.6]} 12. Rh3 {[%clk 0:01:55.3]} 12...
Bd7 {[%clk 0:02:42.8]} 13. Nxd5 {[%clk 0:01:42.7]} 13... exd5 {[%clk 0:02:28.9]}
14. Bxe5 {[%clk 0:01:42.5]} 14... O-O-O {[%clk 0:02:17.6]} 15. Re3 {[%clk
0:01:34.1]} 15... Re8 {[%clk 0:01:43.4]} 16. Qd4 {[%clk 0:01:22.6]} 16... Qxc2
{[%clk 0:01:37.5]} 17. Bd3 {[%clk 0:01:11.6]} 17... Qa4 {[%clk 0:01:38.3]} 18.
Qxd5 {[%clk 0:01:10]} 18... f6 {[%clk 0:01:38.6]} 19. Bf4 {[%clk 0:01:03.5]}
19... Rxe3+ {[%clk 0:01:38.4]} 20. Bxe3 {[%clk 0:01:04.4]} 20... Bc6 {[%clk
0:01:35.7]} 21. Bf5+ {[%clk 0:01:04.2]} 21... Kb8 {[%clk 0:01:32.4]} 22. Qd8+
{[%clk 0:01:02.3]} 22... Ka7 {[%clk 0:01:33.6]} 23. Qb6+ {[%clk 0:01:03.4]}
23... Ka8 {[%clk 0:01:34.9]} 24. Qd8+ {[%clk 0:00:55.3]} 24... Ka7 {[%clk
0:01:35.1]} 25. Bf4 {[%clk 0:00:47.6]} 25... Bd6 {[%clk 0:00:43.3]} 26. Qxd6
{[%clk 0:00:38.2]} 26... Re8+ {[%clk 0:00:40.4]} 27. Kf1 {[%clk 0:00:34.1]}
27... g6 {[%clk 0:00:33.6]} 28. Bd3 {[%clk 0:00:24.2]} 28... Qb3 {[%clk
0:00:34.3]} 29. Re1 {[%clk 0:00:18.5]} 29... Rc8 {[%clk 0:00:20]} 30. Be4 {[%clk
0:00:10.2]} 30... Bb5+ {[%clk 0:00:08.4]} 31. Kg1 {[%clk 0:00:11]} 31... Qc3
{[%clk 0:00:10.3]} 32. Qb6+ {[%clk 0:00:10.2]} 1-0

[Event "*** Titled Tuesday Blitz"]
[Site "Chess.com"]
[Date "2018.12.04"]
[Round "2"]
[White "staz_staz"]
[Black "josmito10"]
[Result "0-1"]
[WhiteElo "2357"]
[BlackElo "2693"]
[TimeControl "180+2"]
[EndTime "13:22:20 PST"]
[Termination "josmito10 won by resignation"]

1. d4 {[%clk 0:03:01.9]} 1... Nf6 {[%clk 0:03:01]} 2. Nf3 {[%clk 0:03:01.7]}
2... d5 {[%clk 0:03:01.6]} 3. c4 {[%clk 0:03:01.8]} 3... dxc4 {[%clk 0:03:01.9]}
4. e3 {[%clk 0:03:01.4]} 4... e6 {[%clk 0:03:01.7]} 5. Bxc4 {[%clk 0:03:02.2]}
5... a6 {[%clk 0:03:03.2]} 6. a4 {[%clk 0:03:00.7]} 6... c5 {[%clk 0:03:03.8]}
7. Qe2 {[%clk 0:02:59.6]} 7... Nc6 {[%clk 0:03:00.2]} 8. O-O {[%clk 0:03:00.4]}
8... cxd4 {[%clk 0:03:00.1]} 9. Rd1 {[%clk 0:02:44.2]} 9... Be7 {[%clk
0:03:00.9]} 10. exd4 {[%clk 0:02:43]} 10... O-O {[%clk 0:03:01.7]} 11. Nc3
{[%clk 0:02:43.8]} 11... Nb4 {[%clk 0:03:02.7]} 12. Bg5 {[%clk 0:02:38.1]} 12...
Nfd5 {[%clk 0:02:58.1]} 13. Nxd5 {[%clk 0:01:40.5]} 13... Nxd5 {[%clk
0:02:52.3]} 14. Bxd5 {[%clk 0:01:23.2]} 14... Bxg5 {[%clk 0:02:52.8]} 15. Be4
{[%clk 0:01:20.8]} 15... Bf6 {[%clk 0:02:46.8]} 16. d5 {[%clk 0:01:21.2]} 16...
exd5 {[%clk 0:02:47.1]} 17. Bxd5 {[%clk 0:01:16.6]} 17... Qb6 {[%clk 0:02:47.6]}
18. Ne5 {[%clk 0:00:59]} 18... Bf5 {[%clk 0:02:02.5]} 19. g4 {[%clk 0:00:25.4]}
19... Bxe5 {[%clk 0:01:51.4]} 20. gxf5 {[%clk 0:00:20.1]} 20... Rae8 {[%clk
0:01:40.7]} 21. Qf3 {[%clk 0:00:17.6]} 21... Re7 {[%clk 0:01:26]} 22. Rab1
{[%clk 0:00:16.7]} 22... Qb4 {[%clk 0:01:11.3]} 23. b3 {[%clk 0:00:16.5]} 23...
b6 {[%clk 0:01:06.8]} 24. Bc4 {[%clk 0:00:16.7]} 24... b5 {[%clk 0:01:04.7]} 25.
axb5 {[%clk 0:00:18.6]} 25... axb5 {[%clk 0:01:06.5]} 26. Bd5 {[%clk 0:00:19.5]}
26... Qh4 {[%clk 0:01:03.5]} 27. Qg2 {[%clk 0:00:19.3]} 27... Qf4 {[%clk
0:01:00.6]} 28. Rbc1 {[%clk 0:00:08.7]} 28... Qxf5 {[%clk 0:00:57.7]} 29. b4
{[%clk 0:00:06.4]} 29... Qf4 {[%clk 0:00:55.4]} 30. Rc5 {[%clk 0:00:07.4]} 30...
Qxb4 {[%clk 0:00:54]} 31. Rc2 {[%clk 0:00:08.4]} 31... Qf4 {[%clk 0:00:53.9]}
32. Rc5 {[%clk 0:00:08.7]} 32... b4 {[%clk 0:00:54.8]} 33. Rb5 {[%clk 0:00:10]}
33... g6 {[%clk 0:00:48.9]} 34. Rb1 {[%clk 0:00:10.6]} 34... Bc3 {[%clk
0:00:48.3]} 35. Bf3 {[%clk 0:00:10]} 35... Kg7 {[%clk 0:00:47.7]} 36. Rb6 {[%clk
0:00:10.3]} 36... Rfe8 {[%clk 0:00:46.1]} 37. h3 {[%clk 0:00:09.2]} 37... Re1+
{[%clk 0:00:46.9]} 0-1

[Event "*** Titled Tuesday Blitz"]
[Site "Chess.com"]
[Date "2018.12.04"]
[Round "2"]
[White "LazyIM"]
[Black "Robert_Chessmood"]
[Result "1-0"]
[WhiteElo "2618"]
[BlackElo "2944"]
[TimeControl "180+2"]
[EndTime "13:22:23 PST"]
[Termination "LazyIM won by checkmate"]

1. e4 {[%clk 0:03:01.9]} 1... e5 {[%clk 0:02:59.5]} 2. Nf3 {[%clk 0:03:02.1]}
2... Nc6 {[%clk 0:03:00.6]} 3. Bc4 {[%clk 0:03:02.2]} 3... Bc5 {[%clk
0:03:00.7]} 4. c3 {[%clk 0:03:03.2]} 4... Nf6 {[%clk 0:03:01.3]} 5. d4 {[%clk
0:03:04.6]} 5... exd4 {[%clk 0:03:02.3]} 6. e5 {[%clk 0:03:06.1]} 6... d5 {[%clk
0:03:03]} 7. Bb5 {[%clk 0:03:07.1]} 7... Ne4 {[%clk 0:03:03.9]} 8. cxd4 {[%clk
0:03:08.5]} 8... Bb6 {[%clk 0:03:05.2]} 9. Nc3 {[%clk 0:03:01.4]} 9... O-O
{[%clk 0:03:04.6]} 10. O-O {[%clk 0:02:59.4]} 10... Bg4 {[%clk 0:03:05.1]} 11.
Bxc6 {[%clk 0:02:59.7]} 11... bxc6 {[%clk 0:03:05.2]} 12. Be3 {[%clk 0:02:57.8]}
12... f6 {[%clk 0:02:46.7]} 13. Ne2 {[%clk 0:02:29.8]} 13... Qe8 {[%clk
0:02:24.1]} 14. Rc1 {[%clk 0:01:34.2]} 14... Bxf3 {[%clk 0:01:21.3]} 15. gxf3
{[%clk 0:01:33.4]} 15... Ng5 {[%clk 0:01:22.3]} 16. f4 {[%clk 0:01:11.2]} 16...
Nf3+ {[%clk 0:01:20.4]} 17. Kg2 {[%clk 0:01:10.8]} 17... Nh4+ {[%clk 0:00:43.4]}
18. Kh1 {[%clk 0:01:11]} 18... Qg6 {[%clk 0:00:43.5]} 19. Ng3 {[%clk 0:01:10.9]}
19... fxe5 {[%clk 0:00:43]} 20. dxe5 {[%clk 0:01:10.9]} 20... d4 {[%clk
0:00:39.9]} 21. Bxd4 {[%clk 0:01:09]} 21... Rad8 {[%clk 0:00:37.6]} 22. Qb3+
{[%clk 0:01:09.1]} 22... Kh8 {[%clk 0:00:36.2]} 23. Be3 {[%clk 0:01:10.5]} 23...
Rd3 {[%clk 0:00:29.2]} 24. Qc2 {[%clk 0:01:05]} 24... Rfd8 {[%clk 0:00:17.4]}
25. Qxc6 {[%clk 0:01:02.1]} 25... Qg4 {[%clk 0:00:14.1]} 26. Bxb6 {[%clk
0:00:45.9]} 26... axb6 {[%clk 0:00:15]} 27. e6 {[%clk 0:00:46.3]} 27... R3d5
{[%clk 0:00:11.2]} 28. Rc3 {[%clk 0:00:42.7]} 28... Qh3 {[%clk 0:00:09.4]} 29.
Rg1 {[%clk 0:00:37.6]} 29... Rd1 {[%clk 0:00:10.3]} 30. Rc1 {[%clk 0:00:34.9]}
30... Rxc1 {[%clk 0:00:07]} 31. Rxc1 {[%clk 0:00:35.9]} 31... Rg8 {[%clk
0:00:03.6]} 32. e7 {[%clk 0:00:34.7]} 32... Qc8 {[%clk 0:00:05.3]} 33. Re1
{[%clk 0:00:30.4]} 33... Re8 {[%clk 0:00:05.9]} 34. f5 {[%clk 0:00:31.5]} 34...
Nxf5 {[%clk 0:00:06.6]} 35. Nxf5 {[%clk 0:00:31.6]} 35... h6 {[%clk 0:00:08.1]}
36. Qg6 {[%clk 0:00:28.9]} 36... Qa8+ {[%clk 0:00:08.8]} 37. Kg1 {[%clk
0:00:29.8]} 37... Rg8 {[%clk 0:00:09.5]} 38. e8=Q {[%clk 0:00:31.3]} 38... Qxa2
{[%clk 0:00:11]} 39. Qxg7# {[%clk 0:00:31.9]} 1-0

[Event "*** Titled Tuesday Blitz"]
[Site "Chess.com"]
[Date "2018.12.04"]
[Round "2"]
[White "MaestroASK"]
[Black "ViIIagra"]
[Result "1-0"]
[WhiteElo "2496"]
[BlackElo "2687"]
[TimeControl "180+2"]
[EndTime "13:22:27 PST"]
[Termination "MaestroASK won by resignation"]

1. g3 {[%clk 0:02:52.2]} 1... d5 {[%clk 0:02:58.7]} 2. d3 {[%clk 0:02:52.6]}
2... g6 {[%clk 0:02:59.8]} 3. e4 {[%clk 0:02:52.5]} 3... Nf6 {[%clk 0:02:55.8]}
4. Bg2 {[%clk 0:02:52.3]} 4... Bg7 {[%clk 0:02:54.8]} 5. c3 {[%clk 0:02:52.1]}
5... O-O {[%clk 0:02:51.9]} 6. f3 {[%clk 0:02:52.4]} 6... c5 {[%clk 0:02:46.8]}
7. Nh3 {[%clk 0:02:51.7]} 7... Nc6 {[%clk 0:02:47.3]} 8. Nf2 {[%clk 0:02:52]}
8... e5 {[%clk 0:02:46.6]} 9. O-O {[%clk 0:02:52]} 9... Re8 {[%clk 0:02:41.8]}
10. Nd2 {[%clk 0:02:52]} 10... Be6 {[%clk 0:02:42.2]} 11. Bh3 {[%clk 0:02:52.1]}
11... Qd7 {[%clk 0:02:25.9]} 12. Bxe6 {[%clk 0:02:48.7]} 12... Qxe6 {[%clk
0:02:27.8]} 13. Qe2 {[%clk 0:02:47.8]} 13... Rad8 {[%clk 0:02:28]} 14. Kg2
{[%clk 0:02:48.2]} 14... b6 {[%clk 0:02:19.3]} 15. Re1 {[%clk 0:02:48.1]} 15...
h6 {[%clk 0:02:12.9]} 16. Nf1 {[%clk 0:02:48.2]} 16... d4 {[%clk 0:01:58.6]} 17.
c4 {[%clk 0:02:48]} 17... a6 {[%clk 0:01:59.5]} 18. Bd2 {[%clk 0:02:45.7]} 18...
b5 {[%clk 0:02:00.9]} 19. Rec1 {[%clk 0:02:44.3]} 19... Nd7 {[%clk 0:02:00.2]}
20. b3 {[%clk 0:02:43.9]} 20... Rb8 {[%clk 0:01:56.7]} 21. Rc2 {[%clk
0:02:36.1]} 21... a5 {[%clk 0:01:56.4]} 22. Rac1 {[%clk 0:02:27.2]} 22... b4
{[%clk 0:01:49.1]} 23. g4 {[%clk 0:02:16.6]} 23... a4 {[%clk 0:01:47.7]} 24. Ng3
{[%clk 0:02:16.1]} 24... Ra8 {[%clk 0:01:46]} 25. h4 {[%clk 0:02:12.6]} 25...
axb3 {[%clk 0:01:44.4]} 26. axb3 {[%clk 0:02:11.7]} 26... Ra3 {[%clk 0:01:46.3]}
27. Rb2 {[%clk 0:02:11.5]} 27... Rea8 {[%clk 0:01:47.9]} 28. h5 {[%clk
0:02:10.7]} 28... Ra2 {[%clk 0:01:43.9]} 29. Rcc2 {[%clk 0:02:02.2]} 29... Rxb2
{[%clk 0:01:39.5]} 30. Rxb2 {[%clk 0:02:02.4]} 30... Ra1 {[%clk 0:01:41.1]} 31.
g5 {[%clk 0:01:42.7]} 31... hxg5 {[%clk 0:01:34.5]} 32. Bxg5 {[%clk 0:01:41.4]}
32... gxh5 {[%clk 0:01:33.9]} 33. Nh3 {[%clk 0:01:32]} 33... Qg6 {[%clk
0:01:30.8]} 34. Kh2 {[%clk 0:01:27.7]} 34... Bf6 {[%clk 0:01:26.7]} 35. Bxf6
{[%clk 0:01:21.2]} 35... Nxf6 {[%clk 0:01:28.6]} 36. Nf5 {[%clk 0:01:14.6]}
36... Kh8 {[%clk 0:00:45.9]} 37. Qf2 {[%clk 0:01:13.5]} 37... Nd8 {[%clk
0:00:40.7]} 38. Qh4 {[%clk 0:01:11.5]} 38... Ra6 {[%clk 0:00:13.1]} 39. Rg2
{[%clk 0:01:10.2]} 39... Qh7 {[%clk 0:00:14.7]} 40. Qg3 {[%clk 0:01:00.2]} 40...
Ne6 {[%clk 0:00:14.3]} 41. Qxe5 {[%clk 0:00:57.7]} 41... Nf8 {[%clk 0:00:15.1]}
42. Qxc5 {[%clk 0:00:44.5]} 1-0

[Event "*** Titled Tuesday Blitz"]
[Site "Chess.com"]
[Date "2018.12.04"]
[Round "2"]
[White "chess4life23"]
[Black "vinniethepooh"]
[Result "1-0"]
[WhiteElo "2409"]
[BlackElo "2409"]
[TimeControl "180+2"]
[EndTime "13:22:32 PST"]
[Termination "chess4life23 won on time"]

1. d4 {[%clk 0:03:01.9]} 1... d5 {[%clk 0:03:00.9]} 2. Nf3 {[%clk 0:03:02.9]}
2... Nf6 {[%clk 0:03:01.4]} 3. c4 {[%clk 0:03:03.7]} 3... c6 {[%clk 0:03:02.8]}
4. e3 {[%clk 0:03:04.2]} 4... Bf5 {[%clk 0:03:02.1]} 5. Nc3 {[%clk 0:03:04.4]}
5... e6 {[%clk 0:03:03.4]} 6. Bd3 {[%clk 0:03:05.4]} 6... Bxd3 {[%clk
0:03:00.6]} 7. Qxd3 {[%clk 0:03:07.3]} 7... Nbd7 {[%clk 0:03:01.2]} 8. O-O
{[%clk 0:03:08.2]} 8... Bd6 {[%clk 0:02:59.6]} 9. e4 {[%clk 0:03:09.2]} 9...
dxe4 {[%clk 0:02:53.2]} 10. Nxe4 {[%clk 0:03:11.1]} 10... Nxe4 {[%clk 0:02:55]}
11. Qxe4 {[%clk 0:03:13]} 11... Nf6 {[%clk 0:02:48]} 12. Qe2 {[%clk 0:03:13.5]}
12... O-O {[%clk 0:02:47.2]} 13. Bg5 {[%clk 0:03:13.6]} 13... h6 {[%clk
0:02:38.2]} 14. Bh4 {[%clk 0:03:10.8]} 14... Be7 {[%clk 0:02:18.9]} 15. Rad1
{[%clk 0:03:07.1]} 15... Qc7 {[%clk 0:02:13.4]} 16. Rfe1 {[%clk 0:03:01.8]}
16... Rad8 {[%clk 0:02:14]} 17. Ne5 {[%clk 0:02:53.9]} 17... Rfe8 {[%clk
0:01:50]} 18. Bg3 {[%clk 0:02:44.3]} 18... Bd6 {[%clk 0:01:34.7]} 19. Qf3 {[%clk
0:02:20.1]} 19... Bxe5 {[%clk 0:01:19.9]} 20. Bxe5 {[%clk 0:02:20.7]} 20... Qe7
{[%clk 0:01:21.3]} 21. Qg3 {[%clk 0:02:17.9]} 21... Kh7 {[%clk 0:01:12]} 22. Rd3
{[%clk 0:02:12.5]} 22... Rg8 {[%clk 0:00:59.2]} 23. Rf3 {[%clk 0:02:08.7]} 23...
Ne8 {[%clk 0:00:46.5]} 24. Qf4 {[%clk 0:01:53.8]} 24... f6 {[%clk 0:00:37]} 25.
Qe4+ {[%clk 0:01:54.8]} 25... g6 {[%clk 0:00:32]} 26. Bg3 {[%clk 0:01:49.7]}
26... Ng7 {[%clk 0:00:31.5]} 27. c5 {[%clk 0:01:29.6]} 27... Rd5 {[%clk
0:00:22.6]} 28. Bd6 {[%clk 0:01:29.9]} 28... Qd8 {[%clk 0:00:19.8]} 29. Qf4
{[%clk 0:01:23.1]} 29... Rf5 {[%clk 0:00:18.3]} 30. Qe3 {[%clk 0:01:16.4]} 30...
Rxf3 {[%clk 0:00:16.2]} 31. Qxf3 {[%clk 0:01:18.3]} 31... Re8 {[%clk 0:00:16.9]}
32. Qb3 {[%clk 0:01:15.6]} 32... Qd7 {[%clk 0:00:17.9]} 33. g4 {[%clk
0:01:14.7]} 33... b6 {[%clk 0:00:15]} 34. Qf3 {[%clk 0:01:12.9]} 34... bxc5
{[%clk 0:00:14.9]} 35. dxc5 {[%clk 0:01:10.8]} 35... e5 {[%clk 0:00:15.6]} 36.
h3 {[%clk 0:01:08.2]} 36... Re6 {[%clk 0:00:15]} 37. Rd1 {[%clk 0:01:04.1]}
37... Ne8 {[%clk 0:00:14]} 38. Bb8 {[%clk 0:00:39.6]} 1-0

[Event "*** Titled Tuesday Blitz"]
[Site "Chess.com"]
[Date "2018.12.04"]
[Round "2"]
[White "Karina_Oparina"]
[Black "Chessmatus"]
[Result "0-1"]
[WhiteElo "2129"]
[BlackElo "2182"]
[TimeControl "180+2"]
[EndTime "13:22:33 PST"]
[Termination "Chessmatus won by resignation"]

1. Nf3 {[%clk 0:02:58.9]} 1... Nf6 {[%clk 0:02:59.9]} 2. g3 {[%clk 0:02:59.5]}
2... d5 {[%clk 0:03:00.9]} 3. Bg2 {[%clk 0:03:00]} 3... c5 {[%clk 0:03:02.1]} 4.
c4 {[%clk 0:02:52.6]} 4... d4 {[%clk 0:03:01.8]} 5. d3 {[%clk 0:02:53.4]} 5...
Nc6 {[%clk 0:03:01.5]} 6. O-O {[%clk 0:02:53.9]} 6... e5 {[%clk 0:03:01.7]} 7.
e4 {[%clk 0:02:48.3]} 7... g6 {[%clk 0:02:53.1]} 8. Nbd2 {[%clk 0:02:46.1]} 8...
Bg7 {[%clk 0:02:54.2]} 9. Ne1 {[%clk 0:02:46.6]} 9... O-O {[%clk 0:02:54.2]} 10.
f4 {[%clk 0:02:47.6]} 10... Bg4 {[%clk 0:02:54.1]} 11. Bf3 {[%clk 0:02:46.2]}
11... Bxf3 {[%clk 0:02:54.1]} 12. Ndxf3 {[%clk 0:02:47]} 12... exf4 {[%clk
0:02:54.5]} 13. gxf4 {[%clk 0:02:37.9]} 13... Qd7 {[%clk 0:02:35.2]} 14. Qe2
{[%clk 0:02:23.3]} 14... Qg4+ {[%clk 0:02:27.1]} 15. Qg2 {[%clk 0:02:23.4]}
15... Rae8 {[%clk 0:02:17.9]} 16. e5 {[%clk 0:02:22.2]} 16... Qxg2+ {[%clk
0:02:18.1]} 17. Nxg2 {[%clk 0:02:21.8]} 17... Nd7 {[%clk 0:02:12.3]} 18. Bd2
{[%clk 0:02:14.6]} 18... f6 {[%clk 0:02:09.7]} 19. exf6 {[%clk 0:02:13.5]} 19...
Nxf6 {[%clk 0:02:09.8]} 20. Rae1 {[%clk 0:02:09.2]} 20... Nh5 {[%clk 0:01:42.9]}
21. Ng5 {[%clk 0:01:59]} 21... Bh6 {[%clk 0:01:27.6]} 22. Ne6 {[%clk 0:01:55.4]}
22... Rf7 {[%clk 0:01:16.5]} 23. Nxc5 {[%clk 0:01:50.9]} 23... Rxe1 {[%clk
0:01:16.1]} 24. Rxe1 {[%clk 0:01:48.5]} 24... Nxf4 {[%clk 0:01:16.7]} 25. Bxf4
{[%clk 0:01:46.9]} 25... Bxf4 {[%clk 0:01:16.6]} 26. Nxf4 {[%clk 0:01:46.9]}
26... Rxf4 {[%clk 0:01:17.1]} 27. Nxb7 {[%clk 0:01:44.6]} 27... Nb4 {[%clk
0:01:17.6]} 28. Nc5 {[%clk 0:01:33.1]} 28... Rf5 {[%clk 0:01:10.9]} 29. Nb3
{[%clk 0:01:16.8]} 29... Nxd3 {[%clk 0:01:09.3]} 30. Re2 {[%clk 0:01:08.1]}
30... Nf4 {[%clk 0:01:00.3]} 31. Rd2 {[%clk 0:00:57.1]} 31... d3 {[%clk
0:01:00.8]} 32. Nd4 {[%clk 0:00:49.8]} 32... Re5 {[%clk 0:00:59.3]} 33. Nf3
{[%clk 0:00:39.8]} 33... Re3 {[%clk 0:00:55.5]} 34. Kf2 {[%clk 0:00:37]} 34...
Re4 {[%clk 0:00:56.8]} 35. b3 {[%clk 0:00:28.7]} 35... Kg7 {[%clk 0:00:56.6]}
36. c5 {[%clk 0:00:26.8]} 36... Kf6 {[%clk 0:00:49.7]} 37. c6 {[%clk 0:00:21.2]}
37... Ke7 {[%clk 0:00:46.9]} 38. Rd1 {[%clk 0:00:21.4]} 38... Kd6 {[%clk
0:00:46]} 39. Rc1 {[%clk 0:00:19.5]} 39... Kc7 {[%clk 0:00:45.1]} 40. Kg3 {[%clk
0:00:17.1]} 40... Ne2+ {[%clk 0:00:45.2]} 41. Kf2 {[%clk 0:00:17.7]} 41... Nxc1
{[%clk 0:00:46.3]} 0-1